Cogmind - Beta 13 @@@ ROGUE MODE // 2024.04.01 @ 00:02:07 Player: ebo Result: Destroyed by D-53 Grenadier with Mini Grenade Launcher Performance ------------- Evolutions (0) 0 Regions Visited (2) 400 Robots Destroyed (13) 65 Value Destroyed (340) 340 Prototype IDs (0) 0 Alien Tech Used (0) 0 Bonus (0) 0 TOTAL SCORE: 805 Bonus ------- None Cogmind --------- Core Integrity 0/250 Matter 296/300 Energy 184/310 System Corruption 0% Temperature Cool (0) Movement Walking (120) Location -10/Mines Parts ------- > --- POWER (1) -------- Fission Core > --- PROPULSION (2) --- Aluminum Leg Flexi-carbon Leg > --- UTILITY (2) ------ Medium Storage Unit Terrain Scanner > --- WEAPON (2) ------- (None) > --- INVENTORY (10) --- Light Ion Engine Aluminum Leg Aluminum Leg Targeting Computer Peak State ------------ > --- POWER ------------ Fission Core > --- PROPULSION ------- Aluminum Leg Flexi-carbon Leg > --- UTILITY ---------- Medium Storage Unit Terrain Scanner > --- WEAPON ----------- (None) > --- INVENTORY -------- Light Ion Engine Aluminum Leg Aluminum Leg Targeting Computer [Rating: 13] Favorites ----------- Power Light Ion Engine Engine Light Ion Engine Power Core Fission Core Propulsion Aluminum Leg Leg Aluminum Leg Hover Unit Hover Unit Utility Medium Storage Unit Device Heat Sink Storage Medium Storage Unit Hackware Hacking Suite Weapon Medium Laser Energy Gun Medium Laser Ballistic Gun Assault Rifle Launcher Grenade Launcher Build | -11 -10 -10 ------- Run | Yrd Mat Min Slots Evolved . | . . . Power . | . . . Propulsion . | . . . Utility . | . . . Weapon . | . . . Parts Attached 14 | 6 4 4 Power 2 | 1 . 1 Engine 1 | 1 . . Core 1 | . . 1 Reactor . | . . . Propulsion 5 | 2 1 2 Treads . | . . . Leg 4 | 2 . 2 Wheel . | . . . Hover 1 | . 1 . Flight . | . . . Utility 4 | 1 3 . Device 2 | 1 1 . Storage 1 | . 1 . Processor . | . . . Hackware 1 | . 1 . Protection . | . . . Artifact . | . . . Weapon 3 | 2 . 1 Energy Gun 1 | 1 . . Energy Cannon . | . . . Ballistic Gun 1 | 1 . . Ballistic Cannon . | . . . Launcher 1 | . . 1 Special Weapon . | . . . Impact Weapon . | . . . Slashing Weapon . | . . . Piercing Weapon . | . . . Special Melee Weapon . | . . . Unidentified Prototypes . | . . . Parts Lost 7 | . 3 4 Power 1 | . . 1 Propulsion 1 | . . 1 Utility 2 | . 2 . Weapon 3 | . 1 2 Highest Loss Streak 4 | . 1 4 To Critical Strikes . | . . . Average Slot Usage (%) 69 | . 81 44 Engine 11 | . 14 4 Leg 6 | . 8 3 Hover 7 | . 9 3 Device 11 | . 10 14 Storage 9 | . 7 14 Hackware 2 | . 4 . Energy Gun 10 | . 14 3 Ballistic Gun 8 | . 12 . Naked Turns . | . . . Heaviest Build 21 | 8 18 21 Greatest Support 30 | 20 20 30 Greatest Overweight (x) 5 | . 2 5 Average Overweight (x) 1 | . 1 2 Largest Inventory Capacity 10 | 5 10 10 Average Capacity 7 | 5 7 10 Most Carried 7 | 2 7 6 Average Carried 4 | . 4 5 Final Capacity 10 | 5 10 10 Final Carried 6 | 1 6 4 Class Distribution -------------------- 100% | Mutant Dominant Class ---------------- Mutant | -10/Materials Mutant | -10/Mines Resources | -11 -10 -10 ----------- Run | Yrd Mat Min Matter Collected 435 | 240 149 46 Remotely . | . . . Salvage Created 502 | 45 408 49 Parts 20 | 2 17 1 Haulers Intercepted . | . . . Recyclers Shooed 1 | . 1 . Parts Field Recycled . | . . . Retrieved Matter . | . . . Parts Self-Destructed . | . . . Prevented . | . . . Kills | -11 -10 -10 ------- Run | Yrd Mat Min Combat Hostiles Destroyed 12 | 1 8 3 Guns 9 | 1 8 . AOE 3 | . . 3 Classes Destroyed 5 | 1 3 1 Worker 2 | . 1 1 Operator 1 | . 1 . Watcher 1 | . 1 . Grunt 9 | 1 8 . Assembled 3 | . . 3 Best Kill Streak 4 | 1 4 3 Combat Bots Only 3 | 1 3 3 Max Kills in Single Turn 3 | 1 1 3 Gunslinging . | . . . Exploded 3 | . . 3 Melee . | . . . Uniques/NPCs Destroyed . | . . . Combat | -11 -10 -10 -------- Run | Yrd Mat Min Hostile Shots Fired 85 | 3 67 15 Missed 32 | 1 27 4 Damage Taken 758 | 21 443 294 Core 255 | . 112 143 Absorbed by Shields . | . . . Core Remaining (%) 100 | 100 . . Volleys Fired 52 | 2 47 3 Largest 2 | 2 2 1 Hottest 70 | 70 70 50 Shots Fired 85 | 4 78 3 Gun 83 | 4 78 1 Cannon . | . . . Launcher 2 | . . 2 Special . | . . . Kinetic 33 | 2 31 . Thermal 50 | 2 47 1 Explosive 2 | . . 2 Electromagnetic . | . . . Robot Hit Streak 19 | 4 19 6 Robot Miss Streak 2 | . 2 . Penetration Max . | . . . Secondary Targets . | . . . Shots Hit Robots 66 | 4 61 1 Core Hits 29 | 2 22 5 Critical Kills . | . . . Critical Parts Destroyed . | . . . Critical Strikes 4 | . 3 1 Burn 4 | . 3 1 Melee Attacks . | . . . Impact . | . . . Slashing . | . . . Piercing . | . . . Sneak Attacks . | . . . Combat Hostiles . | . . . Follow-up Attacks . | . . . Damage Inflicted 1048 | 51 810 187 Guns 874 | 51 810 13 Cannons . | . . . Explosions 174 | . . 174 Melee . | . . . Ramming . | . . . Kinetic 348 | 26 322 . Thermal 526 | 25 488 13 Explosive 174 | . . 174 Electromagnetic . | . . . Impact . | . . . Slashing . | . . . Piercing . | . . . Highest Corruption . | . . . Average Corruption . | . . . Corruption Purged . | . . . Corruption Blocked . | . . . Overload Shots . | . . . Overflow Damage 36 | . . 36 Projectiles . | . . . Explosions 36 | . . 36 Melee . | . . . Knockbacks . | . . . Impact . | . . . Kinetic . | . . . Secondary . | . . . Self-Inflicted Damage 63 | . . 63 Shots 2 | . . 2 Rammed . | . . . Targets Rammed . | . . . Kicked . | . . . Crushed . | . . . Highest Temperature 269 | 24 269 12 Average Temperature 111 | 13 121 9 Received Heat Transfer 252 | 12 240 . Effects 1 | . 1 . Energy Bleed 1 | . 1 . Siege Activations . | . . . Robots Corrupted . | . . . Combat Hostiles . | . . . Parts Fried . | . . . Impact Corruptions . | . . . Robots Melted . | . . . Combat Hostiles . | . . . Parts Melted 4 | . 3 1 Heat Transferred 1850 | 74 1665 111 Parts Sabotaged . | . . . Parts Stolen . | . . . Parts Stripped . | . . . Power Chain Reactions . | . . . Alert | -11 -10 -10 ------- Run | Yrd Mat Min Peak Influence 130 | 20 130 55 Initial 50 | . 13 50 Average 52 | 3 69 39 Maximum Alert Level . | . . . Low Security (%) 100 | 100 100 100 Level 1 . | . . . Level 2 . | . . . Level 3 . | . . . Level 4 . | . . . Level 5 . | . . . High Security . | . . . Max Security . | . . . Squads Dispatched 4 | . 4 . Investigation 2 | . 2 . Extermination . | . . . Reinforcement 2 | . 2 . Assault . | . . . Garrison . | . . . Intercept . | . . . Searches Triggered . | . . . Construction Impeded . | . . . Haulers Reinforced . | . . . Active Scanning Responses . | . . . Cargo Convoy Interrupts . | . . . Stealth | -11 -10 -10 --------- Run | Yrd Mat Min Distress Signals 1 | . 1 . Communications Jammed . | . . . Distress Signals . | . . . Times Spotted 19 | 1 12 6 Peak Tracking Total 4 | 1 4 4 Tactical Retreats 1 | . . 1 Traps | -11 -10 -10 ------- Run | Yrd Mat Min Traps Triggered 2 | . 2 . Indirectly . | . . . Trap Hack Attempts . | . . . Triggered . | . . . Disarmed . | . . . Reprogrammed . | . . . Reused . | . . . Traps Extracted . | . . . Installed . | . . . Triggered . | . . . Machines | -11 -10 -10 ---------- Run | Yrd Mat Min Machines Disabled . | . . . Max in Single Turn . | . . . Machines Repaired . | . . . Machines Dismantled . | . . . Machines Sabotaged . | . . . Overloaded Fab Kills . | . . . Hacking | -11 -10 -10 --------- Run | Yrd Mat Min Machines Accessed 3 | . 2 1 Terminals 3 | . 2 1 Fabricators . | . . . Repair Stations . | . . . Recycling Units . | . . . Scanalyzers . | . . . Garrison Access . | . . . Total Hacks 8 | . 6 2 Successful 3 | . 2 1 Failed 5 | . 4 1 Catastrophic . | . . . Database Lockouts . | . . . Manual . | . . . Terminals 8 | . 6 2 Fabricators . | . . . Repair Stations . | . . . Recycling Units . | . . . Scanalyzers . | . . . Garrison Access . | . . . Terminal Hacks 3 | . 2 1 Record 1 | . 1 . Unreport Threat 1 | . 1 . Zone Layout 1 | . . 1 Fabricator Hacks . | . . . Repair Station Hacks . | . . . Recycling Unit Hacks . | . . . Scanalyzer . | . . . Garrison Access Hacks . | . . . Unauthorized Hacks . | . . . Terminals . | . . . Fabricators . | . . . Repair Stations . | . . . Recycling Units . | . . . Scanalyzers . | . . . Garrison Access . | . . . Data Cores Recovered . | . . . Used . | . . . Hacking Detections 3 | . 2 1 Full Trace Events 2 | . 2 . Feedback Events . | . . . Feedback Blocked . | . . . Robot Schematics Acquired . | . . . Robots Built . | . . . Authchips . | . . . Time . | . . . Total Robot Build Rating . | . . . Part Schematics Acquired . | . . . Parts Built . | . . . Authchips . | . . . Time . | . . . Total Part Build Rating . | . . . Parts Repaired . | . . . Time . | . . . Parts Recycled . | . . . Recycled Matter . | . . . Retrieved Matter . | . . . Retrieved Components . | . . . Parts Scanalyzed . | . . . Part Schematics Acquired . | . . . Parts Damaged . | . . . Bothacking | -11 -10 -10 ------------ Run | Yrd Mat Min Used RIF Installer . | . . . Robots Hacked . | . . . Non-combat . | . . . Combat . | . . . Robot Hacks Applied . | . . . Relay Couplers Released . | . . . Fabnet Peak Effective % . | . . . Robots Rewired . | . . . Allies Hacked . | . . . Hacks Repelled . | . . . Allies | -11 -10 -10 -------- Run | Yrd Mat Min Total Allies . | . . . Largest Group . | . . . Highest-Rated Group . | . . . Highest-Rated Ally . | . . . Total Orders . | . . . Ally Attacks . | . . . Total Damage . | . . . Kills . | . . . Allies Corrupted . | . . . Allies Melted . | . . . Intel | -11 -10 -10 ------- Run | Yrd Mat Min Robot Analysis Total . | . . . Derelict Logs Recovered . | . . . Drone Launches . | . . . Drone Recoveries . | . . . Exploration | -11 -10 -10 ------------- Run | Yrd Mat Min Turns Passed 621 | 78 376 167 Spaces Moved 271 | 59 162 50 Core 40 | 16 . 24 Treads . | . . . Legs 104 | 43 51 10 Wheels . | . . . Hover 127 | . 111 16 Flight . | . . . Fastest Speed 50 | 50 120 120 Average Speed 141 | 101 144 183 Slowest Speed 300 | 120 180 300 Overloaded Moves . | . . . Propulsion Burnouts . | . . . Robots Hopped . | . . . Cave-ins Triggered . | . . . Exploration Rate (%) 13 | 6 25 9 Regions Visited 2 Branch Regions 1 Pre-discovered Areas . | . . . Known Exits Taken . | . . . Unknown Exits Taken 2 | 1 1 . Scrap Searched . | . . . Spaces Dug . | . . . Terrain Destroyed 21 | . . 21 Melee . | . . . Projectile . | . . . AOE 21 | . . 21 Terrain Rammed . | . . . Walls Destroyed . | . . . Machines Disabled . | . . . Actions | -11 -10 -10 --------- Run | Yrd Mat Min Total 423 | 73 228 122 Wait 67 | . 4 63 Move 269 | 58 161 50 Hop . | . . . Pick Up 18 | 7 9 2 Fast Attach . | . . . Attach 13 | 6 3 4 Detach 1 | . 1 . Swap 1 | . 1 . Drop 2 | . 2 . Fire 52 | 2 47 3 Melee . | . . . Ram . | . . . Kick . | . . . Crush . | . . . Escape Stasis . | . . . Rewire . | . . . Trap . | . . . Miscellaneous . | . . . Route ------- -11/Scrapyard -10/Materials -10/Mines History --------- Turn | Location | Event 2 | -11/Scrapyard | Met Revision 17 52 | -11/Scrapyard | Discovered new exit (range 8) 79 | -11/Scrapyard | Entered Materials 300 | -10/Materials | Build established: Mutant 407 | -10/Materials | Discovered new exit (range 7) 455 | -10/Materials | Entered Mines 456 | -10/Mines | Assembled infested the area 461 | -10/Mines | Assisted by a Guerilla fighting off Assembled 503 | -10/Mines | Core integrity fell below 50% 520 | -10/Mines | Core integrity fell below 20% 522 | -10/Mines | Met a Derelict bent on vengeance 550 | -10/Mines | Lost 4 parts (1p1n2w) 622 | -10/Mines | Destroyed by D-53 Grenadier with Mini Grenade Launcher Last Messages --------------- K-01 Serf suffers critical hit (Burn). Lgt. Ion Engine melted. K-01 Serf destroyed. Med. Laser destroyed. Hover Unit destroyed. as-47508 destroyed. as-52220 destroyed. as-34720 destroyed. Destroyed Asb. Hover Unit. Grenade Launcher destroyed. Destroyed Grenade Launcher. Lgt. Ion Engine destroyed. Destroyed Lgt. Ion Engine. The unstable cave ceiling collapses. Acquired 3 matter. Acquired Flexi-carbon Leg. Acquired 37 matter. The unstable cave ceiling collapses. Acquired Fission Core. Acquired 6 matter. Map ----- +----------------------------------------------------+ | | | ?????????????????????????????????????????????????? | | ?????????????????????????????????????????????????? | | ?????????????????????????????????????????????????? | | ???????????????????????????????????????????#?????? | | ?????????????????????????????????????????????????? | | ??????????????????????????????????????#????#?????? | | ?????????????????????????????????????????????????? | | ?????????????????????????????????????????#???#???? | | ?????????????????????????????????????????????????# | | ????????????????????????????????????????????????#? | | ???????????????????????????????????##????????#???? | | ??????????????????????????????????#??????????????? | | ????????????????????????????????#???#?????###????# | | ??????????????????????????????????????????#T###### | | ??????????????????????#???#??????#????????# ## | | ???????????????????????????#???????????#??# ## | | ???????????????????????#???#??###??#?#????# ## | | ???????????????? ????????????## #########?# #? | | ?????????????????????????????#%!### #?# #? | | ??????????????????????#????#?#!*## ### #? | | ?????????????????????????????# ## % #? | | ?????????????????????????????# !## ##########? | | ?????????????????????????????# % ####????????? | | ?????????????????#############=%### ##??????????? | | ????????????????# *!%= @ d #?######??#????#?? | | ????????????????# ####### #### %#????????????????? | | ????????????????????????# #??#% ###????#??????#??? | | ???????????????????????? #??# ##??????#??????? | | ???????????????????????####??# #####?????????? | | ????????????????????????#????# ? ????#?????? | | ?????????????????????#???????# ? ????????#? | | ?????????????????????????????# % ?? ????????? | | ????????????????????????????? ##% ???##?#??? | | ????????????????????????????? ??"# ### ????????? | | ????????????????????????????? ?#### #???#????????? | | ????????????????????????????? ???? #????????????? | | ????????????????????????????? ??????#????????????? | | ???????????????????????????? ???????????????????? | | ???????????????????????????? ???????????????????? | | ????????????????????????????? ???????????????????? | | ?????????????????????????????????????????????????? | | ?????????????????????????????????????????????????? | | ?????????????????????????????????????????????????? | | ?????????????????????????????????????????????????? | | ?????????????????????????????????????????????????? | | ?????????????????????????????????????????????????? | | ?????????????????????????????????????????????????? | | ?????????????????????????????????????????????????? | | ?????????????????????????????????????????????????? | +----------------------------------------------------+ Best States ------------- Heat Dissipation 35 Energy Generation 18 Energy Capacity 310 Matter Stores 300 Matter Capacity 300 Sight Range 16 Terrain Scan Range 14 Terrain Scan Density 10 Evasion (%) 55 Offensive Hacking 10 Item Schematics ----------------- None Robot Schematics ------------------ None Fabricated ------------ Nothing Alien Tech Used ----------------- None Achievements -------------- Everything Is Under Control Challenges ------------ None Game ------ Seed GrapheneActuatorCompactor Manual? 0 Play Time 00:09:47 Cumulative 1.0 hours Start 2024.03.31 @ 23:54:33 End 2024.04.01 @ 00:02:07 Sessions 1 Manual Loads 0 Difficulty Rogue Special Mode None Game No. 2 Rogue 2 Adventurer 0 Explorer 0 Win Type - Total 0 Types 0/0/0/0/0/0/0/0/0 Lore% 0 Gallery% 3 Achievement% 4 Wizard Run 0 Options --------- Layout 1 ASCII 0 Keyboard 0 Movement Mouse Keybinds 0 Fullscreen 1 Font 24/Smallcaps Map View 50x35 Zoom Use 0% Tactical HUD 0 Map Filters NONE Filters NONE Steam 1 RUN: 165001c3-d66f-44c8-86c1-7da074615555